bitfinex/quotes_BTCUSD_20250124
["timestamp","ask_amount","ask_price","bid_price","bid_amount"]
[1737716213201,0.00029862,105230.0,105220.0,0.34238529]
[1737716214012,0.00029862,105230.0,105220.0,0.41888529]
[1737716214336,0.00029862,105230.0,105220.0,0.45488529]
[1737716214536,6.2e-07,105230.0,105220.0,0.57488529]
[1737716215153,6.2e-07,105230.0,105220.0,0.57533189]
[1737716215481,6.2e-07,105230.0,105220.0,0.57433189]
[1737716216063,0.00029842,105250.0,105240.0,0.2289]
[1737716216247,0.00029842,105250.0,105240.0,0.44426729]
[1737716217272,0.00029842,105250.0,105240.0,0.44626729]
[1737716218593,0.00079075,105250.0,105240.0,0.44626729]
[1737716219978,0.00079075,105250.0,105240.0,0.47535012]
[1737716220191,0.00079075,105250.0,105240.0,0.45235012]
[1737716220313,0.00079075,105250.0,105240.0,0.37345012]
[1737716220942,0.12769075,105250.0,105240.0,0.38441012]
[1737716221373,0.12769075,105250.0,105240.0,0.38341012]
[1737716222046,0.04769075,105250.0,105240.0,0.38341012]
[1737716222261,0.00079075,105250.0,105240.0,0.38341012]
[1737716222464,0.00079075,105250.0,105240.0,0.46221012]
[1737716222673,0.00079075,105250.0,105240.0,0.46121012]
[1737716222879,0.00079075,105250.0,105240.0,0.46321012]
[1737716223237,0.00079075,105250.0,105240.0,0.46221012]
[1737716223449,0.00079075,105250.0,105240.0,0.46121012]
[1737716223677,0.00079075,105250.0,105240.0,0.46321012]
[1737716229291,0.00079075,105250.0,105240.0,0.54830845]
[1737716234855,0.00079075,105250.0,105240.0,0.45854845]
[1737716235038,0.07889075,105250.0,105240.0,0.46950845]
[1737716235825,0.00079075,105250.0,105240.0,0.38441012]
[1737716236025,0.00079075,105250.0,105240.0,0.46583308]
[1737716236299,7.5e-07,105250.0,105240.0,0.47669972]
[1737716236513,4.2e-07,105260.0,105250.0,0.4373006]
[1737716236726,9.7e-07,105260.0,105250.0,0.85764789]
[1737716236935,0.00076622,105280.0,105270.0,0.094993]
[1737716237143,0.00076622,105280.0,105270.0,0.42224029]
[1737716239023,0.00076622,105280.0,105270.0,0.43224029]
[1737716239199,2.2e-07,105280.0,105270.0,0.45256325]
[1737716239411,2.2e-07,105280.0,105270.0,0.45356325]
[1737716239774,2.2e-07,105280.0,105270.0,0.47238442]
[1737716240128,2.2e-07,105280.0,105270.0,0.47138442]
[1737716240432,2.2e-07,105280.0,105270.0,0.47238442]
[1737716242783,2.2e-07,105280.0,105270.0,0.44238442]
[1737716242982,2.2e-07,105280.0,105270.0,0.44206146]
[1737716243812,2.2e-07,105280.0,105270.0,0.45302146]
[1737716244364,2.2e-07,105280.0,105270.0,0.46294274]
[1737716250235,2.2e-07,105280.0,105270.0,0.45198274]
[1737716250437,2.2e-07,105280.0,105270.0,0.46294274]
[1737716252930,0.1891753,105400.0,105300.0,0.15]
[1737716253139,0.38217529,105330.0,105320.0,0.15]
[1737716254350,0.38217529,105330.0,105310.0,0.244955]
[1737716254515,0.48601625,105330.0,105310.0,0.244957]
[1737716255401,0.48601625,105330.0,105320.0,0.001]
[1737716255845,0.073,105320.0,105310.0,0.15]
[1737716256016,0.17684096,105320.0,105310.0,0.151]
[1737716256223,0.073,105320.0,105310.0,0.151]
[1737716256944,0.073,105320.0,105310.0,0.15]
[1737716257146,0.073,105320.0,105310.0,0.244957]
[1737716257314,0.073,105320.0,105310.0,0.094957]
[1737716258215,0.073,105320.0,105310.0,0.095957]
[1737716264439,0.08302675,105320.0,105310.0,0.095957]
[1737716266867,0.073,105320.0,105310.0,0.095957]
[1737716269380,0.000298,105330.0,105320.0,0.094948]
[1737716271198,0.000298,105330.0,105320.0,0.095948]
[1737716274382,0.000298,105330.0,105320.0,0.176648]
[1737716277209,0.000298,105330.0,105320.0,0.095948]
[1737716283129,0.000298,105330.0,105320.0,0.176848]
[1737716283330,0.000298,105330.0,105320.0,0.31989529]
[1737716284455,0.000298,105330.0,105320.0,0.31889529]
[1737716284822,0.000298,105330.0,105320.0,0.31989529]
[1737716285746,0.000298,105330.0,105320.0,0.176848]
[1737716287665,0.000298,105330.0,105320.0,0.095948]
[1737716292576,0.000298,105330.0,105320.0,0.0960899]
[1737716301618,0.046498,105330.0,105320.0,0.0960899]
[1737716302216,0.000298,105330.0,105320.0,0.0960899]
[1737716302391,0.000298,105330.0,105320.0,0.1752899]
[1737716303578,0.000298,105330.0,105320.0,0.1742899]
[1737716303994,0.000298,105330.0,105320.0,0.1752899]
[1737716317285,0.000298,105330.0,105320.0,0.3252899]
[1737716317732,0.000298,105330.0,105320.0,0.47093719]
[1737716321498,0.000298,105330.0,105320.0,0.49956336]
[1737716322096,0.000298,105330.0,105320.0,0.49856336]
[1737716322850,0.000298,105330.0,105320.0,0.5834092]
[1737716323056,0.000298,105330.0,105320.0,0.5844092]
[1737716323256,0.000298,105330.0,105320.0,0.5940649]
[1737716323682,0.000298,105330.0,105320.0,0.5950649]
[1737716324659,0.000298,105330.0,105320.0,0.6059449]
[1737716326198,0.000298,105330.0,105320.0,0.6039449]
[1737716326334,1e-08,105330.0,105320.0,0.6049449]
[1737716327010,0.00039221,105340.0,105330.0,0.386039]
[1737716327214,0.00039221,105340.0,105330.0,0.48338629]
[1737716329182,0.00039221,105340.0,105330.0,0.48438629]
[1737716330401,2.1e-07,105340.0,105330.0,0.48438629]
[1737716332810,2.1e-07,105340.0,105330.0,0.50738629]
[1737716333970,2.1e-07,105340.0,105330.0,0.55735075]
[1737716334174,2.1e-07,105340.0,105330.0,0.95735075]
[1737716334589,2.1e-07,105340.0,105330.0,0.92738629]
[1737716334823,0.00029821,105360.0,105350.0,0.365921]
[1737716335054,0.00079012,105360.0,105350.0,0.46326829]
[1737716335254,0.00079012,105360.0,105350.0,0.47414829]
[1737716336064,0.00079012,105360.0,105350.0,0.47514829]
[1737716338369,0.00079012,105360.0,105350.0,0.48490131]
[1737716339460,0.00079012,105360.0,105350.0,0.47402131]
[1737716339634,0.00079012,105360.0,105350.0,0.48490131]
[1737716342461,0.00079012,105360.0,105350.0,0.50390501]
[1737716347017,0.00079012,105360.0,105350.0,0.44792501]
[1737716351511,0.00079012,105360.0,105350.0,0.45880501]
[1737716362423,0.00079012,105360.0,105350.0,0.30880501]
[1737716364013,0.00079012,105360.0,105350.0,0.45880501]
[1737716365891,0.00079012,105360.0,105350.0,0.30880501]
[1737716366690,0.00079012,105360.0,105350.0,0.45880501]
[1737716368073,0.00079012,105360.0,105350.0,0.37202501]
[1737716368252,0.00079012,105360.0,105350.0,0.45661277]
[1737716370108,0.00079012,105360.0,105350.0,0.57841277]
[1737716372228,0.00079012,105360.0,105350.0,0.58929277]
[1737716372854,1.2e-07,105360.0,105350.0,0.58929277]
[1737716373059,1.2e-07,105360.0,105350.0,0.59929277]
[1737716375838,1.2e-07,105360.0,105350.0,0.59943467]
[1737716376255,0.00029812,105360.0,105350.0,0.59943467]
[1737716377565,0.00029812,105360.0,105350.0,0.51484691]
[1737716381414,1.2e-07,105360.0,105350.0,0.51484691]
[1737716384912,1.2e-07,105360.0,105350.0,0.37116691]
[1737716385055,1.2e-07,105360.0,105350.0,0.38304691]
[1737716385676,1.2e-07,105360.0,105350.0,0.38404691]
[1737716385914,1.2e-07,105360.0,105350.0,0.45914691]
[1737716386368,1.2e-07,105360.0,105350.0,0.46014691]
[1737716398122,1.2e-07,105360.0,105350.0,0.50984691]
[1737716411448,1.2e-07,105360.0,105350.0,0.51984691]
[1737716412637,0.01029821,105390.0,105380.0,0.15]
[1737716412875,0.01029821,105390.0,105380.0,0.42064129]
[1737716412876,0.01034738,105390.0,105380.0,0.42064129]
[1737716414031,0.01034738,105390.0,105380.0,0.42164129]
[1737716414691,0.0054642,105390.0,105380.0,0.42264129]
[1737716417531,0.0054642,105390.0,105380.0,0.44207288]
[1737716419002,0.0054642,105390.0,105380.0,0.45166631]
[1737716420648,0.0054642,105390.0,105380.0,0.45166631]
[1737716420858,0.0054642,105390.0,105380.0,0.49966631]
[1737716422505,0.0054642,105390.0,105380.0,0.49766631]
[1737716422734,0.0054642,105390.0,105380.0,0.49866631]
[1737716423110,0.0054642,105390.0,105380.0,0.49880831]
[1737716423347,2e-07,105390.0,105380.0,0.61964831]
[1737716423549,0.02499686,105430.0,105420.0,0.244858]
[1737716423749,0.02504602,105430.0,105420.0,0.34220529]
[1737716423954,0.00099732,105430.0,105420.0,0.34220529]
[1737716424580,4.916e-05,105430.0,105420.0,0.34220529]
[1737716425625,4.916e-05,105430.0,105420.0,0.34320529]
[1737716426241,4.916e-05,105430.0,105420.0,0.245858]
[1737716426431,0.02404916,105430.0,105420.0,0.245858]
[1737716427079,0.02404916,105430.0,105420.0,0.244858]
[1737716427296,0.02404916,105430.0,105420.0,0.245858]
[1737716427506,4.916e-05,105430.0,105420.0,0.34320529]
[1737716428653,4.916e-05,105430.0,105420.0,0.34220529]
[1737716428854,4.916e-05,105430.0,105420.0,0.34320529]
[1737716429572,4.916e-05,105430.0,105420.0,0.34420529]
[1737716430854,4.916e-05,105430.0,105420.0,0.33420529]
[1737716434679,4.916e-05,105430.0,105420.0,0.33434729]
[1737716435235,0.00627387,105430.0,105420.0,0.33434729]
[1737716435438,0.00657208,105430.0,105420.0,0.33434729]
[1737716437198,0.00034737,105430.0,105420.0,0.33434729]
[1737716437825,0.00657208,105430.0,105420.0,0.33434729]
[1737716446846,0.00657208,105430.0,105420.0,0.41394729]
[1737716454957,0.00657208,105430.0,105420.0,0.087]
[1737716455598,0.00657208,105430.0,105420.0,0.237]
[1737716461452,0.072098,105440.0,105420.0,0.237]
[1737716461657,0.072098,105440.0,105420.0,0.616424]
[1737716462279,0.072098,105440.0,105420.0,0.531566]
[1737716462485,0.072098,105440.0,105430.0,0.244849]
[1737716462953,0.072098,105440.0,105430.0,0.15]
[1737716464735,0.072098,105440.0,105430.0,0.151]
[1737716467539,0.072098,105440.0,105430.0,0.245849]
[1737716468068,0.048098,105440.0,105430.0,0.245849]
[1737716468947,0.000298,105440.0,105430.0,0.322549]
[1737716469163,0.000298,105440.0,105430.0,0.369749]
[1737716469829,0.000298,105440.0,105430.0,0.368749]
[1737716471884,0.000298,105440.0,105430.0,0.369749]
[1737716472532,0.000298,105440.0,105430.0,0.46709629]
[1737716472744,0.000298,105440.0,105430.0,0.34319629]
[1737716473278,0.000298,105440.0,105430.0,0.41849629]
[1737716474062,0.000298,105440.0,105430.0,0.42792482]
[1737716474270,0.000298,105440.0,105430.0,0.47442482]
[1737716479364,0.000298,105440.0,105430.0,0.321149]
[1737716480269,0.000298,105440.0,105430.0,0.369049]
[1737716480935,0.000298,105440.0,105430.0,0.3691909]
[1737716493349,0.00274394,105440.0,105430.0,0.3691909]
[1737716493533,0.00465464,105440.0,105430.0,0.3691909]
[1737716499343,0.00465464,105440.0,105430.0,0.2459909]
[1737716499754,0.00465464,105440.0,105430.0,0.3239909]
[1737716501245,0.00465464,105440.0,105430.0,0.0791419]
[1737716501451,0.00465464,105440.0,105430.0,0.1739909]
[1737716503559,0.00465464,105440.0,105430.0,0.3239909]
[1737716506355,0.00465464,105440.0,105430.0,0.0011419]
[1737716506560,0.05305464,105440.0,105430.0,0.0959909]
[1737716506743,0.05305464,105440.0,105430.0,0.1511419]
[1737716507160,0.05305464,105440.0,105430.0,0.2459909]
[1737716507566,0.00465464,105440.0,105430.0,0.3231909]
[1737716510961,0.00465464,105440.0,105430.0,0.46733819]
[1737716511376,0.000298,105440.0,105430.0,0.46733819]
[1737716513455,0.000298,105440.0,105430.0,0.47707422]
[1737716514199,0.000298,105440.0,105430.0,0.56174092]
[1737716515918,0.000298,105440.0,105430.0,0.56074092]
[1737716516119,0.000298,105440.0,105430.0,0.56174092]
[1737716518912,0.000298,105440.0,105430.0,0.2565576]
[1737716519124,0.09764529,105440.0,105430.0,0.0858086]
[1737716519453,0.3288585,105440.0,105430.0,0.0858086]
[1737716519736,0.3488585,105440.0,105430.0,0.0858086]
[1737716519957,0.32986609,105440.0,105430.0,0.0848086]
[1737716520144,0.32986609,105440.0,105430.0,0.0858086]
[1737716521122,0.14704529,105440.0,105430.0,0.0858086]
[1737716521330,0.14704529,105440.0,105430.0,0.0848086]
[1737716521751,0.14704529,105440.0,105430.0,0.0858086]
[1737716522122,1.500298,105440.0,105430.0,0.0959909]
[1737716522662,0.000298,105440.0,105430.0,0.0959909]
[1737716525731,0.000298,105440.0,105430.0,0.0949909]
[1737716525937,0.000298,105440.0,105430.0,0.0959909]
[1737716527344,0.000298,105440.0,105430.0,0.0949909]
[1737716527704,0.000298,105440.0,105430.0,0.3221909]
[1737716528587,0.000298,105440.0,105430.0,0.3231909]
[1737716529190,0.000298,105440.0,105430.0,0.42053819]
[1737716532182,0.000298,105440.0,105430.0,0.46883819]
[1737716533348,0.000298,105440.0,105430.0,0.46783819]
[1737716533961,0.000298,105440.0,105430.0,0.46883819]
[1737716537710,0.000298,105440.0,105430.0,0.3714909]
[1737716538162,0.000298,105440.0,105430.0,0.3231909]
[1737716538374,0.000298,105440.0,105430.0,0.2459909]
[1737716538602,0.095138,105440.0,105430.0,0.0011419]
[1737716538782,0.000298,105440.0,105430.0,0.1511419]
[1737716539185,0.000298,105440.0,105430.0,0.1501419]
[1737716539594,0.000298,105440.0,105430.0,0.1511419]
[1737716540185,0.000298,105440.0,105430.0,0.1521419]
[1737716542034,0.000298,105440.0,105430.0,0.2469909]
[1737716542255,0.00963219,105440.0,105430.0,0.2469909]
[1737716542455,0.000298,105440.0,105430.0,0.2469909]
[1737716542686,0.095138,105440.0,105430.0,0.1521419]
[1737716542890,0.000298,105440.0,105430.0,0.1521419]
[1737716543941,0.29610661,105440.0,105430.0,0.1521419]
[1737716544778,0.19248529,105440.0,105430.0,0.1521419]
[1737716545378,0.09764529,105440.0,105430.0,0.1521419]
[1737716546162,0.19248529,105440.0,105430.0,0.1521419]
[1737716546371,0.1069579,105440.0,105430.0,0.1521419]
[1737716546895,0.2017979,105440.0,105430.0,0.1521419]
[1737716550412,0.2017979,105440.0,105430.0,0.0021419]
[1737716551597,0.32541922,105440.0,105430.0,0.0021419]
[1737716551805,0.39791922,105440.0,105430.0,0.0021419]
[1737716552874,0.39791922,105440.0,105430.0,0.0001419]
[1737716553733,0.39991922,105440.0,105430.0,0.0001419]
[1737716558454,0.41847991,105440.0,105430.0,0.0001419]
[1737716558788,0.5158272,105440.0,105430.0,0.0001419]
[1737716561102,0.41847991,105440.0,105430.0,0.0001419]
[1737716563064,0.51834991,105440.0,105430.0,0.0001419]
[1737716567211,0.62197123,105440.0,105430.0,0.0001419]
[1737716567412,0.51834991,105440.0,105430.0,0.0001419]
[1737716567797,0.62197123,105440.0,105430.0,0.0001419]
[1737716568185,0.71931852,105440.0,105430.0,0.0001419]
[1737716568809,0.6156972,105440.0,105430.0,0.0001419]
[1737716569452,0.71931852,105440.0,105430.0,0.0001419]
[1737716569859,0.6156972,105440.0,105430.0,0.0001419]
[1737716570449,0.71931852,105440.0,105430.0,0.0001419]
[1737716570987,0.6156972,105440.0,105430.0,0.0001419]
[1737716571625,0.71931852,105440.0,105430.0,0.0001419]
[1737716571851,0.6156972,105440.0,105430.0,0.0001419]
[1737716572063,0.71931852,105440.0,105430.0,0.0001419]
[1737716572274,0.6156972,105440.0,105430.0,0.0001419]
[1737716573126,0.71931852,105440.0,105430.0,0.0001419]
[1737716573514,0.6156972,105440.0,105430.0,0.0001419]
[1737716573699,0.71931852,105440.0,105430.0,0.0001419]
[1737716575732,0.6156972,105440.0,105430.0,0.0001419]
[1737716577672,0.71931852,105440.0,105430.0,0.0001419]
[1737716577874,0.7162431,105440.0,105430.0,0.0001419]
[1737716579669,0.7142431,105440.0,105430.0,0.0001419]
[1737716580038,0.7172431,105440.0,105430.0,0.0001419]
[1737716580804,0.217719,105430.0,105420.0,1e-06]
[1737716580960,0.40668511,105430.0,105420.0,1e-06]
[1737716581784,0.52250943,105430.0,105420.0,1e-06]
[1737716581992,0.52450943,105430.0,105420.0,1e-06]
[1737716582497,0.52850943,105430.0,105420.0,1e-06]
[1737716587524,0.52880785,105430.0,105420.0,1e-06]
[1737716589246,1.40340785,105430.0,105420.0,1e-06]
[1737716589456,1.50075514,105430.0,105420.0,1e-06]
[1737716595198,0.62615514,105430.0,105420.0,1e-06]
[1737716597437,0.42508628,105430.0,105420.0,1e-06]
[1737716597649,0.31221628,105430.0,105420.0,0.127001]
[1737716600796,0.42893785,105430.0,105420.0,0.127001]
[1737716601700,0.32521628,105430.0,105420.0,0.127001]
[1737716601921,0.33521628,105430.0,105420.0,0.127001]
[1737716602199,0.31221628,105430.0,105420.0,0.127001]
[1737716603796,0.27653632,105430.0,105420.0,0.127001]
[1737716604998,0.34457793,105430.0,105420.0,0.127001]
[1737716605199,0.33457793,105430.0,105420.0,0.127001]
[1737716605404,0.26653632,105430.0,105420.0,0.127001]
[1737716605630,0.27653632,105430.0,105420.0,0.127001]
[1737716605838,0.31217929,105430.0,105420.0,0.127001]
[1737716606045,0.40952658,105430.0,105420.0,0.127001]
[1737716606471,0.31217929,105430.0,105420.0,0.127001]
[1737716607648,0.34013329,105430.0,105420.0,0.127001]
[1737716607859,0.31217929,105430.0,105420.0,0.127001]
[1737716613638,0.31217929,105430.0,105420.0,0.277001]
[1737716618844,0.42886387,105430.0,105420.0,0.227501]
[1737716618987,0.32517929,105430.0,105420.0,0.227501]
[1737716619499,0.39272423,105430.0,105420.0,0.227501]
[1737716619701,0.42886387,105430.0,105420.0,0.227501]
[1737716619907,0.32517929,105430.0,105420.0,0.227501]
[1737716625753,0.35759973,105430.0,105420.0,0.227501]
[1737716639015,0.01,105420.0,105410.0,0.023001]
[1737716639277,0.33831031,105420.0,105410.0,0.02305016]
[1737716640976,0.34031031,105420.0,105410.0,0.02305016]
[1737716641388,0.02,105410.0,105390.0,0.16793516]
[1737716641607,0.42464729,105400.0,105390.0,0.434653]
[1737716641815,0.44242038,105400.0,105390.0,0.434653]
[1737716642160,0.44242038,105400.0,105390.0,0.515253]
[1737716642582,0.44242038,105400.0,105390.0,0.2316]
[1737716642788,0.44242038,105400.0,105390.0,0.325485]
[1737716643078,0.42464729,105400.0,105390.0,0.325485]
[1737716643250,0.42464729,105400.0,105390.0,0.076485]
[1737716643457,0.42464729,105400.0,105390.0,0.002]
[1737716643665,0.4926998,105400.0,105390.0,0.002]
[1737716644078,0.4926998,105400.0,105390.0,0.096885]
[1737716644428,0.4926998,105400.0,105390.0,0.143285]
[1737716644641,0.42464729,105400.0,105390.0,0.142285]
[1737716644871,0.42464729,105400.0,105390.0,0.143285]
[1737716645480,0.42464729,105400.0,105390.0,0.1434271]
[1737716645693,0.09764571,105400.0,105390.0,0.1434271]
[1737716646320,0.09764571,105400.0,105390.0,0.2204271]
[1737716648999,0.00029842,105400.0,105390.0,0.2204271]
[1737716649199,0.00029842,105400.0,105390.0,0.1204271]
[1737716649419,0.00029842,105400.0,105390.0,0.2153121]
[1737716655783,0.19252171,105400.0,105390.0,0.1204271]
[1737716656083,0.21252171,105400.0,105390.0,0.1204271]
[1737716656504,0.09764571,105400.0,105390.0,0.2153121]
[1737716660701,0.00029842,105400.0,105390.0,0.2153121]
[1737716668062,0.00471177,105400.0,105390.0,0.2153121]
[1737716675187,1.50471177,105400.0,105390.0,0.2153121]
[1737716675321,0.00471177,105400.0,105390.0,0.2153121]
[1737716685013,0.00029842,105400.0,105390.0,0.2153121]
[1737716699191,0.00029842,105400.0,105390.0,0.0960271]
[1737716699401,0.00029842,105400.0,105380.0,0.6457951]
[1737716699614,0.00029842,105400.0,105390.0,0.094885]
[1737716701717,0.00961697,105400.0,105390.0,0.094885]
[1737716702349,0.00961697,105400.0,105390.0,0.001]
[1737716702350,0.07766948,105400.0,105390.0,0.001]
[1737716702557,0.00961697,105400.0,105390.0,0.001]
[1737716703905,0.00029842,105400.0,105390.0,0.095885]
[1737716704336,0.00029842,105400.0,105390.0,0.0960271]
[1737716705274,0.00029842,105400.0,105390.0,0.0011421]
[1737716705879,0.00029842,105400.0,105390.0,0.0960271]
[1737716708239,0.00029842,105400.0,105390.0,0.1729271]
[1737716712519,0.00029842,105400.0,105390.0,0.2205271]
[1737716728648,0.07549842,105400.0,105390.0,0.0960271]
[1737716729083,0.00029842,105400.0,105390.0,0.094885]
[1737716730777,0.00029842,105400.0,105380.0,0.6287932]
[1737716731403,0.00029842,105400.0,105390.0,0.094885]
[1737716732891,0.00029842,105400.0,105390.0,0.095885]
[1737716733915,0.09764571,105400.0,105390.0,0.001]
[1737716734137,0.33777422,105400.0,105390.0,0.001]
[1737716734555,0.17484571,105400.0,105390.0,0.001]
[1737716734977,0.26972171,105400.0,105390.0,0.001]
[1737716735413,0.27262116,105400.0,105390.0,0.001]
[1737716736719,0.17774516,105400.0,105390.0,0.095885]
[1737716736935,0.00319787,105400.0,105390.0,0.001]
[1737716737304,0.00344144,105400.0,105390.0,0.001]
[1737716742291,0.27286473,105400.0,105390.0,0.001]
[1737716744359,0.10078873,105400.0,105390.0,0.001]
[1737716745335,0.10078873,105400.0,105390.0,0.095885]
[1737716756453,0.10078873,105400.0,105390.0,0.001]
[1737716757039,0.10078873,105400.0,105390.0,0.095885]
[1737716762387,0.10078873,105400.0,105390.0,0.001]
[1737716762617,0.10078873,105400.0,105390.0,0.095885]
[1737716762947,0.10093292,105400.0,105390.0,0.095885]
[1737716763157,0.10093292,105400.0,105390.0,0.001]
[1737716763393,0.10093292,105400.0,105390.0,0.095885]
[1737716771593,0.10115064,105400.0,105390.0,0.095885]
[1737716775598,0.00380335,105400.0,105390.0,0.178885]
[1737716775757,0.00380335,105400.0,105390.0,0.225385]
[1737716781292,0.00380335,105400.0,105390.0,0.23508277]
[1737716782488,0.00380335,105400.0,105390.0,0.225385]
[1737716818558,0.00380335,105400.0,105390.0,0.375385]
[1737716818790,0.00380335,105400.0,105390.0,0.37473417]
[1737716820051,0.00380335,105400.0,105390.0,0.37261617]
[1737716832014,0.00418554,105400.0,105390.0,0.37275827]
[1737716833907,0.00418554,105400.0,105390.0,0.24325827]
[1737716855009,0.00467155,105400.0,105390.0,0.24325827]
[1737716859302,0.00467155,105400.0,105390.0,0.1501421]
[1737716859636,0.18511884,105400.0,105390.0,0.0001421]
[1737716859842,0.18511884,105400.0,105390.0,0.1501421]
[1737716861500,0.25317135,105400.0,105390.0,0.1501421]
[1737716861722,0.18511884,105400.0,105390.0,0.1501421]
[1737716863887,0.25317135,105400.0,105390.0,0.1501421]
[1737716864299,0.18511884,105400.0,105390.0,0.1501421]
[1737716864721,0.19463447,105400.0,105390.0,0.1501421]
[1737716865212,0.26268698,105400.0,105390.0,0.1501421]
[1737716865437,0.35756298,105400.0,105390.0,0.0001421]
[1737716865637,0.35756298,105400.0,105390.0,0.1501421]
[1737716867110,0.35756298,105400.0,105390.0,0.0001421]
[1737716872175,0.35938897,105400.0,105390.0,0.0001421]
[1737716877451,0.42744148,105400.0,105390.0,0.0001421]
[1737716877680,0.35938897,105400.0,105390.0,0.0001421]
[1737716878598,0.36138897,105400.0,105390.0,0.0001421]
[1737716879394,0.36338897,105400.0,105390.0,0.0001421]
[1737716880775,0.20046046,105400.0,105390.0,0.0001421]
[1737716881025,0.01049754,105400.0,105390.0,0.2252421]
[1737716881254,0.01049754,105400.0,105390.0,0.3665271]
[1737716882071,0.01049754,105400.0,105390.0,0.2716421]
[1737716883771,0.01049754,105400.0,105390.0,0.3665271]
[1737716884151,0.01049754,105400.0,105390.0,0.2716421]
[1737716884353,0.01049754,105400.0,105390.0,0.2252421]
[1737716886432,0.01049754,105400.0,105390.0,0.1501421]
[1737716886865,0.01049754,105400.0,105390.0,0.2450271]
[1737716888405,0.01049754,105400.0,105390.0,0.3264271]
[1737716892551,0.01049754,105400.0,105390.0,0.2315421]
[1737716892761,0.01049754,105400.0,105390.0,0.3264271]
[1737716893114,0.01049754,105400.0,105390.0,0.2315421]
[1737716893327,0.01049754,105400.0,105390.0,0.3264271]
[1737716893548,0.01049754,105400.0,105390.0,0.2315421]
[1737716894111,0.01049754,105400.0,105390.0,0.3264271]
[1737716894294,0.01049754,105400.0,105390.0,0.2315421]
[1737716894523,0.01049754,105400.0,105390.0,0.3264271]
[1737716897200,0.01049754,105400.0,105390.0,0.2315421]
[1737716897387,0.20272083,105400.0,105390.0,0.1501421]
[1737716897602,0.27077334,105400.0,105390.0,0.1501421]
[1737716898022,0.17589734,105400.0,105390.0,0.1501421]
[1737716899057,0.27077334,105400.0,105390.0,0.1501421]
[1737716899263,0.17589734,105400.0,105390.0,0.1501421]
[1737716900679,0.27077334,105400.0,105390.0,0.1501421]
[1737716900894,0.17589734,105400.0,105390.0,0.1501421]
[1737716901547,0.10784483,105400.0,105390.0,0.2450271]
[1737716901791,0.10784483,105400.0,105390.0,0.1501421]
[1737716902840,0.10784483,105400.0,105390.0,0.2450271]
[1737716903040,0.10784483,105400.0,105390.0,0.3271271]
[1737716906004,0.10784483,105400.0,105390.0,0.2322421]
[1737716906819,0.10784483,105400.0,105390.0,0.3271271]
[1737716908487,0.01049754,105400.0,105390.0,0.3729271]
[1737716909115,0.01049754,105400.0,105390.0,0.2229271]
[1737716912469,0.17589734,105400.0,105390.0,0.0001421]
[1737716912915,0.27077334,105400.0,105390.0,0.0001421]
[1737716913114,0.17589734,105400.0,105390.0,0.0001421]
[1737716913318,0.27077334,105400.0,105390.0,0.0001421]
[1737716913769,0.36624985,105400.0,105390.0,0.0001421]
[1737716913979,0.54917836,105400.0,105390.0,0.0001421]
[1737716914190,0.48112585,105400.0,105390.0,0.0001421]
[1737716914398,0.52917836,105400.0,105390.0,0.0001421]
[1737716914611,0.52735237,105400.0,105390.0,0.0001421]
[1737716914856,0.62411492,105400.0,105390.0,0.0001421]
[1737716915061,0.63350381,105400.0,105390.0,0.0001421]
[1737716915270,0.53415652,105400.0,105390.0,0.0001421]
[1737716915455,1.73099002,105390.0,105380.0,3.607e-05]
[1737716915586,1.91103731,105390.0,105380.0,3.607e-05]
[1737716915797,0.41103731,105390.0,105380.0,3.607e-05]
[1737716917129,0.41193945,105390.0,105380.0,3.607e-05]
[1737716917558,0.52928674,105390.0,105380.0,3.607e-05]
[1737716917772,0.46143945,105390.0,105380.0,3.607e-05]
[1737716918120,0.4663383,105390.0,105380.0,3.607e-05]
[1737716918325,0.4683383,105390.0,105380.0,3.607e-05]
[1737716928485,0.5063103,105390.0,105380.0,3.607e-05]
[1737716931271,0.31605779,105390.0,105380.0,3.607e-05]
[1737716931687,0.30605779,105390.0,105380.0,3.607e-05]
[1737716932594,0.31605779,105390.0,105380.0,3.607e-05]
[1737716933026,0.33605779,105390.0,105380.0,3.607e-05]
[1737716933649,0.4041103,105390.0,105380.0,3.607e-05]
[1737716933858,0.47552776,105390.0,105380.0,3.607e-05]
[1737716934070,0.55812776,105390.0,105380.0,3.607e-05]
[1737716935975,0.53812776,105390.0,105380.0,3.607e-05]
[1737716936185,0.47552776,105390.0,105380.0,3.607e-05]
[1737716937033,0.47582618,105390.0,105380.0,3.607e-05]
[1737716938345,0.45582618,105390.0,105380.0,3.607e-05]
[1737716938641,0.47582618,105390.0,105380.0,3.607e-05]
[1737716941184,0.45582618,105390.0,105380.0,3.607e-05]
[1737716941359,0.47582618,105390.0,105380.0,3.607e-05]
[1737716943017,0.46582618,105390.0,105380.0,3.607e-05]
[1737716953757,0.39452452,105390.0,105380.0,3.607e-05]
[1737716954646,0.47742452,105390.0,105380.0,3.607e-05]
[1737716961355,0.52553493,105390.0,105380.0,3.607e-05]
[1737716962732,0.54553493,105390.0,105380.0,3.607e-05]
[1737716963028,0.52553493,105390.0,105380.0,3.607e-05]
[1737716963234,0.55291309,105390.0,105380.0,3.607e-05]
[1737716964202,0.60101309,105390.0,105380.0,3.607e-05]
[1737716964576,0.59901309,105390.0,105380.0,3.607e-05]
[1737716965019,0.60101309,105390.0,105380.0,3.607e-05]
[1737716965260,0.59901309,105390.0,105380.0,3.607e-05]
[1737716965480,0.59701309,105390.0,105380.0,3.607e-05]
[1737716965611,0.59901309,105390.0,105380.0,3.607e-05]
[1737716965840,0.62860493,105390.0,105380.0,3.607e-05]
[1737716965995,0.56963493,105390.0,105380.0,3.607e-05]
[1737716966460,0.66681489,105390.0,105380.0,0.00103607]
[1737716968695,0.104912,105360.0,105350.0,0.0772419]
[1737716968902,0.33848011,105360.0,105350.0,0.22729107]
[1737716969100,0.34199487,105360.0,105350.0,0.22729107]
[1737716969991,0.34299487,105360.0,105350.0,0.22829107]
[1737716972458,0.37107725,105360.0,105350.0,0.22829107]
[1737716973307,0.36107725,105360.0,105350.0,0.22829107]
[1737716974715,1.86107725,105360.0,105350.0,0.22829107]
[1737716975343,0.37107725,105360.0,105350.0,0.22829107]
[1737716975579,0.28427103,105360.0,105350.0,0.12799107]
[1737716975790,0.35238144,105360.0,105350.0,0.12799107]
[1737716977283,0.34238144,105360.0,105350.0,0.12799107]
[1737716977491,0.35238144,105360.0,105350.0,0.12799107]
[1737716977670,0.34238144,105360.0,105350.0,0.12799107]
[1737716978029,0.35238144,105360.0,105350.0,0.12799107]
[1737716981520,0.34238144,105360.0,105350.0,0.27799107]
[1737716982400,0.35238144,105360.0,105350.0,0.27799107]
[1737716982649,0.34238144,105360.0,105350.0,0.27799107]
[1737716982887,0.35238144,105360.0,105350.0,0.27799107]
[1737716983111,0.34238144,105360.0,105350.0,0.27799107]
[1737716983347,0.35238144,105360.0,105350.0,0.27799107]
[1737716987123,0.34238144,105360.0,105350.0,0.27799107]